{"text_format":"1","workbook":"xlsx","n_sheets":2,"sheets":["Raw data","Code keys"],"not_rendered":{"charts":0,"images":0,"macros":0,"external_links":0,"defined_names":1,"comments":0,"pivot_tables":0},"unopened":[],"bounds":{"document_bytes":16777216,"sheet_cells":100000,"rows_first":2000,"rows_last":500,"rows_between":2000,"halvings":0,"cell_chars":16384,"cell_head_chars":4096},"cells_cut":0,"cells_raw":0,"read":"whole","date_system":"1900"}

{"sheet":"Raw data","index":0,"n_rows":160,"n_cols":23,"rows_kept":160,"cut":false,"hidden":false,"merged":[]}
[]
["Number","Race","Language","Gender","Age (months)","Area indicated on sticker","Distance to VWH (km)","Distance to RCWMCH (km)","New patient","Re-screen","VHW ENT","VHW POPD","FBH POPD","Clinic","MOU","Audiology","Other","OAE Pass (R, L, BIL)","OAE Refer (R, L, BIL)","OAE CNE (R, L, BIL)","Reason for referral (see tab for key)","Etiological factors related to hearing loss","Refer to RCWMCH "]
[1,"C","ENG","M",132,"PELICAN PARK",11.83,14.95,1,null,null,1,null,null,null,null,null,"BIL",null,null,5,"ASD; SEIZURES"]
[{"$f":"A3+1","v":2},"A","OTHER","M",72,"WYNBERG",1.2,10.050000000000001,null,1,null,1,null,null,null,null,null,"BIL",null,null,4,"ASD "]
[{"$f":"A4+1","v":3},"C","AFR","M",17,"LAVENDER HILL",8.32,14.4,1,null,null,1,null,null,null,null,null,"BIL",null,null,2,"VM"]
[{"$f":"A5+1","v":4},"A","OTHER","F",8,"LANSDOWNE",6.44,5.08,1,null,null,1,null,null,null,null,null,"R","L",null,2,"NONE"]
[5,"C","AFR","M",35,"OTTERY",5.86,10.89,1,null,null,1,null,null,null,null,null,"BIL",null,null,2,"VM"]
[6,"C","AFR","M",35,"RETREAT",8.76,15.06,1,null,null,1,null,null,null,null,null,"BIL",null,null,2,"VM"]
[7,"A","XHOSA","F",13,"HOUT BAY",14.23,22.65,1,null,null,1,null,null,null,null,null,"BIL",null,null,2,"BM"]
[8,"W","AFR","M",35,"HOUT BAY",14.23,22.65,1,null,null,null,1,null,null,null,null,"BIL",null,null,5,"NONE"]
[9,"C","ENG","F",108,"LOTUS RIVER",7.65,12.63,1,null,1,null,null,null,null,null,null,"BIL",null,null,4,"NONE"]
[10,"A","XHOSA","M",39,"HOUT BAY",14.23,22.65,1,null,null,1,null,null,null,null,null,null,"BIL",null,5,"RVD; GDD"]
[11,"A","ENG","M",1,"GRASSY PARK",7.65,12.63,1,null,null,1,null,null,null,null,null,"L","R",null,2,"VM"]
[12,"W","ENG","M",68,"LAVENDER HILL",8.32,14.4,1,null,null,1,null,null,null,null,null,"BIL",null,null,2,"VM"]
[13,"A","AFR","F",72,"LOTUS RIVER",7.65,12.63,1,null,null,1,null,null,null,null,null,"BIL",null,null,2,"UNCONFIRMED"]
[14,"C","ENG","M",1,"GRASSY PARK",7.65,12.63,null,1,null,null,null,null,null,1,null,"BIL",null,null,2,"VM"]
[15,"W","ENG","M",1,"GRASSY PARK",7.65,12.63,1,null,null,1,null,null,null,null,null,"BIL",null,null,2,"VM"]
[16,"A","XHOSA","M",132,"MANDELA PARK",36.82,26.52,1,null,null,1,null,null,null,null,null,"BIL",null,null,2,"BM"]
[17,"C","ENG","M",54,"OCEAN VIEW",25.63,37.61,1,null,null,null,1,null,null,null,null,"BIL",null,null,5,"OME; EX-PREM"]
[18,"C","AFR","M",2,"PELICAN PARK",11.83,14.95,1,null,null,1,null,null,null,null,null,"BIL",null,null,2,"VM"]
[19,"A","XHOSA","M",39,"HOUT BAY",14.23,22.65,null,1,null,null,null,null,null,1,null,null,"BIL",null,5,"GDD"]
[20,"C","ENG","F",43,"OCEAN VIEW",25.63,37.61,1,null,null,1,null,null,null,null,null,"BIL",null,null,5,"EX-PREM; ASD"]
[21,"C","ENG","M",43,"OCEAN VIEW",25.63,37.61,1,null,null,null,1,null,null,null,null,"BIL",null,null,5,"EX-PREM; ASD"]
[22,"A","ENG","M",36,"WYNBERG",1.2,10.050000000000001,1,null,null,1,null,null,null,null,null,"BIL",null,null,5,"SEIZURES"]
[23,"A","AFR","M",1,"STRANDFONTEIN",16.61,19.73,1,null,null,1,null,null,null,null,null,"L",null,"R",2,"VM",1]
[24,"C","ENG","F",1,"STEENBERG",10.28,15.53,1,null,null,1,null,null,null,null,null,"L",null,"R",2,"VM"]
[25,"C","ENG","F",58,"STRANDFONTEIN",16.61,19.73,1,null,null,1,null,null,null,null,null,"BIL",null,null,5,"NONE"]
[26,"A","XHOSA","F",108,"MASIPHUMELELE",23.88,35.880000000000003,1,null,null,null,1,null,null,null,null,"BIL",null,null,1,"SEIZURES"]
[27,"A","XHOSA","M",69,"MUIZENBERG",13.48,19.16,1,null,null,1,null,null,null,null,null,"BIL",null,null,5,"EPILEPSY"]
[28,"A","XHOSA","M",36,"MASIPHUMELELE",23.88,35.880000000000003,1,null,null,null,null,1,null,null,null,"BIL",null,null,5,"NONE"]
[29,"A","XHOSA","F",35,"RETREAT",8.76,15.06,1,null,null,1,null,null,null,null,null,"BIL",null,null,5,"NONE"]
[30,"C","ENG","M",15,"RETREAT",8.76,15.06,1,null,null,1,null,null,null,null,null,"BIL",null,null,1,"GDD"]
[31,"W","ENG","F",21,"MUIZENBERG",13.48,19.16,1,null,null,1,null,null,null,null,null,"BIL",null,null,2,"VM"]
[32,"W","ENG","M",37,"LOTUS RIVER",7.65,12.63,1,null,null,1,null,null,null,null,null,"BIL",null,null,5,"NONE"]
[33,"A","XHOSA","F",3,"MANDELA PARK",36.82,26.52,1,null,null,1,null,null,null,null,null,"BIL",null,null,2,"VM"]
[34,"C","AFR","F",96,"LOTUS RIVER",7.65,12.63,1,null,null,1,null,null,null,null,null,"L","R",null,1,"OME; GDD; HEMIPLEGIA"]
[35,"W","AFR","M",29,"STEENBERG",10.28,15.53,1,null,null,1,null,null,null,null,null,"BIL",null,null,2,"VM"]
[36,"C","ENG","M",53,"PARKWOOD ",7.65,12.63,1,null,null,1,null,null,null,null,null,"BIL",null,null,2,"VM"]
[37,"C","ENG","M",72,"STEENBERG",10.28,15.53,1,null,null,1,null,null,null,null,null,"BIL",null,null,2,"VM"]
[38,"W","ENG","M",17,"HOUT BAY",14.23,22.65,1,null,null,1,null,null,null,null,null,"BIL",null,null,2,"VM"]
[39,"C","AFR","M",72,"STEENBERG",10.28,15.53,1,null,null,1,null,null,null,null,null,"BIL",null,null,4,"NONE"]
[40,"C","AFR","F",84,"LAVENDER HILL",8.32,14.4,1,null,null,1,null,null,null,null,null,"BIL",null,null,2,"VM"]
[41,"C","ENG","F",50,"CAFDA",7.6,13.68,1,null,null,1,null,null,null,null,null,"R","L",null,2,"VM"]
[42,"A","XHOSA","M",63,"STEENBERG",10.28,15.53,1,null,null,1,null,null,null,null,null,"BIL",null,null,2,"VM"]
[43,"W","ENG","F",46,"MUIZENBERG",13.48,19.16,1,null,null,1,null,null,null,null,null,null,"BIL",null,2,"VM"]
[44,"C","AFR","F",48,"OCEAN VIEW",25.63,37.61,1,null,null,null,1,null,null,null,null,"BIL",null,null,5,"LBW; NICU"]
[45,"C","AFR","M",56,"LOTUS RIVER",7.65,12.63,1,null,null,1,null,null,null,null,null,"BIL",null,null,5,"NONE"]
[46,"C","AFR","M",59,"STEENBERG",10.28,15.53,1,null,null,null,null,1,null,null,null,null,null,"BIL",5,"OME"]
[47,"A","XHOSA","F",16,"HOUT BAY",14.23,22.65,null,1,null,null,null,null,null,1,null,"BIL",null,null,2,"BM"]
[48,"A","XHOSA","M",120,"MASIPHUMELELE",23.88,35.880000000000003,1,null,null,null,1,null,null,null,null,"BIL",null,null,4,"NONE"]
[49,"A","XHOSA","M",32,"WESTRIDGE",17.62,18.07,1,null,null,1,null,null,null,null,null,"BIL",null,null,5,"ASD"]
[50,"C","ENG","M",62,"STEENBERG",10.28,15.53,1,null,null,null,null,null,null,null,1,"BIL",null,null,5,"CONGENITAL CUTIS APLASIA"]
[51,"C","ENG","M",96,"PELICAN PARK",11.83,14.95,1,null,null,1,null,null,null,null,null,"BIL",null,null,2,"VM"]
[52,"C","AFR","F",84,"WESTRIDGE",17.62,18.07,1,null,null,null,1,null,null,null,null,"BIL",null,null,1,"EX-PREM; LBW; NICU STAY>5 DAYS"]
[53,"C","AFR","M",72,"WESTRIDGE",17.62,18.07,1,null,null,null,1,null,null,null,null,"BIL",null,null,4,"NONE"]
[54,"C","ENG","M",36,"RETREAT",8.76,15.06,1,null,null,null,null,1,null,null,null,null,null,"BIL",1,"ASD",1]
[55,"C","ENG","F",25,"RETREAT",8.76,15.06,1,null,null,null,null,1,null,null,null,null,"BIL",null,5,"OME"]
[56,"C","AFR","F",144,"LAVENDER HILL",8.32,14.4,1,null,null,1,null,null,null,null,null,"BIL",null,null,1,"ID "]
[57,"A","XHOSA","M",60,"MASIPHUMELELE",23.88,35.880000000000003,1,null,null,null,null,null,null,null,1,"BIL",null,null,4,"NONE"]
[58,"C","ENG","M",58,"LAVENDER HILL",8.32,14.4,1,null,null,1,null,null,null,null,null,"BIL",null,null,2,"VM"]
[59,"C","ENG","M",31,"CAFDA",7.6,13.68,1,null,null,null,null,1,null,null,null,"BIL",null,null,5,"NONE"]
[60,"A","ENG","M",84,"MASIPHUMELELE",23.88,35.880000000000003,1,null,null,1,null,null,null,null,null,"BIL",null,null,10,"WAX"]
[61,"W","ENG","F",56,"GRASSY PARK",7.65,12.63,1,null,null,1,null,null,null,null,null,null,null,"BIL",1,"ASD",1]
[62,"C","ENG","F",51,"CAFDA",7.6,13.68,null,1,null,1,null,null,null,null,null,"R","L",null,2,"MENINGITIS"]
[63,"A","XHOSA","M",40,"FISH HOEK",20.37,25.72,1,null,null,1,null,null,null,null,null,"BIL",null,null,5,"ASD; DEVELOPMENTAL DELAY"]
[64,"W","ENG","F",47,"MUIZENBERG",13.48,19.16,null,1,null,1,null,null,null,null,null,"R","L",null,2,"VM"]
[65,"C","ENG","M",42,"RETREAT",8.76,15.06,1,null,null,1,null,null,null,null,null,"BIL",null,null,2,"VM"]
[66,"C","ENG","M",30,"OTTERY",5.86,10.89,1,null,null,1,null,null,null,null,null,"BIL",null,null,5,"FTT; DRUG EXPOSURE IN UTERO"]
[67,"A","OTHER","F",47,"WYNBERG",1.2,10.050000000000001,1,null,null,1,null,null,null,null,null,"BIL",null,null,5,"NONE"]
[{"$f":"A69+1","v":68},"C","ENG","F",84,"FISH HOEK",20.37,25.72,1,null,null,null,1,null,null,null,null,"BIL",null,null,4,"NONE"]
[69,"A","XHOSA","M",26,"MUIZENBERG",13.48,19.16,1,null,null,null,1,null,null,null,null,null,null,"BIL",10,"OME; SPEECH DELAY"]
[70,"A","OTHER","F",84,"FISH HOEK",20.37,25.72,1,null,null,null,1,null,null,null,null,"BIL",null,null,4,"NONE"]
[71,"A","XHOSA","M",84,"MASIPHUMELELE",23.88,35.880000000000003,1,null,null,null,1,null,null,null,null,"BIL",null,null,4,"NONE"]
[72,"A","XHOSA","M",96,"PLUMSTEAD",1.61,11.07,1,null,null,1,null,null,null,null,null,"BIL",null,null,4,"NONE"]
[73,"C","ENG","F",84,"STRANDFONTEIN",16.61,19.73,1,null,null,1,null,null,null,null,null,"R","L",null,5,"SPEECH DELAY"]
[74,"C","ENG","M",72,"LAVENDER HILL",8.32,14.4,1,null,null,1,null,null,null,null,null,"BIL",null,null,1,"EX-PREM; SPEECH DELAY; SLURRING"]
[75,"A","XHOSA","M",96,"MASIPHUMELELE",23.88,35.880000000000003,1,null,null,null,1,null,null,null,null,"BIL",null,null,1,"PREM; LBW"]
[76,"C","ENG","F",33,"MUIZENBERG",13.48,19.16,null,1,null,null,null,null,null,1,null,null,"BIL",null,2,"BM"]
[77,"C","ENG","F",33,"MUIZENBERG",13.48,19.16,null,1,null,null,null,null,null,1,null,"BIL",null,null,2,"BM"]
[78,"C","ENG","M",17,"OCEAN VIEW",25.63,37.61,1,null,null,null,1,null,null,null,null,null,"BIL",null,5,"SPEECH DELAY; OME",1]
[79,"C","ENG","F",63,"WETTON",6.32,8.52,1,null,null,1,null,null,null,null,null,null,"BIL",null,5,"SPEECH DELAY; OME"]
[80,"C","ENG","M",63,"PHILIPPI",16.61,19.73,1,null,null,1,null,null,null,null,null,"BIL",null,null,2,"BM"]
[81,"A","XHOSA","M",24,"KIRSTENHOF",8.24,20.23,1,null,null,1,null,null,null,null,null,"BIL",null,null,5,"SPEECH DELAY"]
[82,"C","ENG","M",22,"LAKEVIEW",13.48,19.16,1,null,null,1,null,null,null,null,null,null,"BIL",null,5,"SPEECH DELAY; FAMILY HX OF HL; OME"]
[83,"C","ENG","M",38,"OTTERY",5.86,10.89,1,null,null,null,null,null,null,null,1,"BIL",null,null,5,"SPEECH DELAY. ALREADY ATTENDING SLT"]
[84,"C","ENG","M",96,"MUIZENBERG",13.48,19.16,1,null,null,null,1,null,null,null,null,"BIL",null,null,4,"NONE"]
[85,"C","ENG","M",37,"LOTUS RIVER",7.65,12.63,1,null,null,null,null,null,null,null,1,"BIL",null,null,5,"SPEECH DELAY; ASD"]
[86,"A","XHOSA","F",65,"MASIPHUMELELE",23.88,35.880000000000003,1,null,null,null,1,null,null,null,null,"BIL",null,null,4,"ADHD"]
[87,"C","ENG","F",26,"RETREAT",8.76,15.06,null,1,null,null,null,null,null,1,null,"R","L",null,10,"OME",1]
[88,"C","AFR","M",132,"OCEAN VIEW",25.63,37.61,1,null,null,null,1,null,null,null,null,"BIL",null,null,4,"ADHD"]
[89,"C","AFR","M",84,"KIRSTENHOF",8.24,20.23,1,null,null,null,1,null,null,null,null,"BIL",null,null,4,"ADHD"]
[90,"W","AFR","M",50,"WETTON",6.32,8.52,1,null,null,1,null,null,null,null,null,"BIL",null,null,5,"SPEECH DELAY"]
[91,"C","ENG","F",96,"GRASSY PARK",7.65,12.63,1,null,null,null,null,null,null,null,1,"BIL",null,null,4,"NONE"]
[92,"C","AFR","F",19,"WYNBERG",1.2,10.050000000000001,1,null,null,1,null,null,null,null,null,"BIL",null,null,2,"BM"]
[93,"C","AFR","M",2,"RETREAT",8.76,15.06,1,null,null,1,null,null,null,null,null,"R",null,"L",2,"BM"]
[94,"W","ENG","F",48,"MUIZENBERG",13.48,19.16,null,1,null,1,null,null,null,null,null,null,"BIL",null,2,"VM",1]
[95,"A","XHOSA","M",24,"FISH HOEK",20.37,25.72,1,null,null,null,1,null,null,null,null,"BIL",null,null,5,"SPEECH DELAY"]
[96,"C","ENG","F",96,"PELICAN PARK",11.83,14.95,1,null,null,1,null,null,null,null,null,"R","L",null,4,"ADHD; MEASLES",1]
[97,"W","ENG","M",43,"KALK BAY",20.37,25.72,1,null,null,null,1,null,null,null,null,"BIL",null,null,5,"SPEECH DELAY"]
[98,"A","AFR","F",84,"FISH HOEK",20.37,25.72,1,null,null,null,1,null,null,null,null,"BIL",null,null,4,"ADHD"]
[99,"C","ENG","F",43,"CAFDA",7.6,13.68,1,null,null,1,null,null,null,null,null,"BIL",null,null,5,"SPEECH DELAY; FAMILY HX OF HL"]
[100,"A","XHOSA","M",26,"CLAREMONT",4.18,5.37,1,null,null,1,null,null,null,null,null,null,null,"BIL",1,"ASD; SPEECH DELAY",1]
[101,"A","XHOSA","F",108,"MASIPHUMELELE",23.88,35.880000000000003,1,null,null,null,1,null,null,null,null,"BIL",null,null,4,"BEHAVIOURAL PROBLEMS"]
[102,"C","ENG","M",84,"STRANDFONTEIN",16.61,19.73,null,1,null,1,null,null,null,null,null,"BIL",null,null,5,"SPEECH DELAY"]
[103,"A","OTHER","M",22,"CLAREMONT",4.18,5.37,1,null,null,1,null,null,null,null,null,"BIL",null,null,5,"SPEECH DELAY; GDD; MIXED CP"]
[104,"C","ENG","M",23,"LAKEVIEW",13.48,19.16,null,1,null,1,null,null,null,null,null,null,"BIL",null,5,"SPEECH DELAY"]
[105,"C","AFR","F",96,"GRASSY PARK",7.65,12.63,1,null,null,1,null,null,null,null,null,"BIL",null,null,2,"VM"]
[106,"A","XHOSA","M",120,"WYNBERG",1.2,10.050000000000001,1,null,null,1,null,null,null,null,null,"BIL",null,null,2,"BM"]
[107,"A","XHOSA","M",96,"MASIPHUMELELE",23.88,35.880000000000003,1,null,null,null,1,null,null,null,null,"BIL",null,null,4,"ADHD"]
[108,"C","ENG","F",70,"LOTUS RIVER",7.65,12.63,1,null,null,1,null,null,null,null,null,"R","L","L",5,"ASD; SPEECH DELAY",1]
[109,"C","AFR","F",38,"GRASSY PARK",7.65,12.63,1,null,null,null,null,null,null,null,1,"BIL",null,null,5,"SPEECH DELAY"]
[110,"C","AFR","M",60,"MUIZENBERG",13.48,19.16,1,null,null,1,null,null,null,null,null,"BIL",null,null,4,"BEHAVIOURAL PROBLEMS"]
[111,"C","AFR","M",84,"GRASSY PARK",7.65,12.63,1,null,null,null,1,null,null,null,null,null,"BIL",null,10,"OME"]
[112,"C","ENG","M",47,"LOTUS RIVER",7.65,12.63,1,null,null,1,null,null,null,null,null,"R",null,"L",5,"EXPOSURE TO HEROIN"]
[113,"A","XHOSA","M",84,"MASIPHUMELELE",23.88,35.880000000000003,1,null,null,1,null,null,null,null,null,"BIL",null,null,4,"ADHD"]
[114,"A","OTHER","M",120,"LOTUS RIVER",7.65,12.63,1,null,null,1,null,null,null,null,null,"BIL",null,null,1,"HIE"]
[115,"C","AFR","M",33,"GRASSY PARK",7.65,12.63,1,null,null,1,null,null,null,null,null,"BIL",null,null,4,"GDD"]
[116,"C","ENG","M",18,"OCEAN VIEW",25.63,37.61,1,null,null,null,1,null,null,null,null,"BIL",null,null,5,"OME"]
[117,"A","OTHER","M",63,"KENILWORTH",2.12,7.24,1,null,null,1,null,null,null,null,null,"BIL",null,null,5,"NONE"]
[118,"C","AFR","M",3,"RETREAT",8.76,15.06,null,1,null,1,null,null,null,null,null,"R","L",null,2,"BM",1]
[{"$f":"(A120+1)","v":119},"W","ENG","M",120,"OCEAN VIEW",25.63,37.61,1,null,null,null,1,null,null,null,null,"L","R",null,4,"ADHD; DYSLEXIA; OME",1]
[{"$f":"(A121+1)","v":120},"W","ENG","M",2,"PLUMSTEAD",1.61,11.07,1,null,null,1,null,null,null,null,null,"R","L",null,2,"VM; EX-PREM; DRUG EXPOSURE"]
[121,"C","ENG","M",108,"HOUT BAY",14.23,22.65,1,null,null,1,null,null,null,null,null,"BIL",null,null,4,"ADHD; OSA"]
[122,"C","AFR","M",84,"OCEAN VIEW",25.63,37.61,1,null,null,null,1,null,null,null,null,"BIL",null,null,4,"LOW CONCENTRATION"]
[123,"C","AFR","F",120,"LOTUS RIVER",7.65,12.63,null,1,null,null,null,null,null,null,null,"BIL",null,null,6,"R OAE REFER; HEMIPLEGIA; GDD"]
[124,"A","XHOSA","F",34,"MASIPHUMELELE",23.88,35.880000000000003,1,null,null,null,1,null,null,null,null,"BIL",null,null,5,"SPEECH DELAY"]
[125,"C","ENG","M",45,"OCEAN VIEW",25.63,37.61,1,null,null,null,1,null,null,null,null,"BIL",null,null,2,"OME"]
[126,"C","ENG","F",53,"RETREAT",8.76,15.06,1,null,null,1,null,null,null,null,null,"L","R",null,5,"SPEECH DELAY; GDD"]
[127,"A","XHOSA","F",7,"STEENBERG",10.28,15.53,1,null,null,1,null,null,null,null,null,"BIL",null,null,2,"UNCONFIRMED; EX-PREM @ 31 WKS"]
[128,"C","ENG","M",20,"PELICAN PARK",11.83,14.95,1,null,null,1,null,null,null,null,null,"BIL",null,null,4,"BEHAVIOURAL CONCERNS"]
[129,"C","AFR","M",1,"OCEAN VIEW",25.63,37.61,1,null,null,1,null,null,null,null,null,"BIL",null,null,2,"BM"]
[130,"W","ENG","F",1,"OCEAN VIEW",25.63,37.61,1,null,null,1,null,null,null,null,null,"BIL",null,null,2,"BM"]
[131,"C","ENG","M",59,"OTTERY",5.86,10.89,1,null,null,1,null,null,null,null,null,"L","R",null,5,"SPEECH DELAY"]
[132,"C","AFR","F",22,"WYNBERG",1.2,10.050000000000001,null,1,null,1,null,null,null,null,null,"BIL",null,null,2,"BM"]
[133,"W","AFR","M",48,"OCEAN VIEW",25.63,37.61,1,null,null,null,1,null,null,null,null,"L","R",null,5,"SPEECH DELAY"]
[134,"C","ENG","M",108,"PARKWOOD",7.65,12.63,1,null,null,1,null,null,null,null,null,"BIL",null,null,5,"SPEECH DELAY"]
[135,"C","ENG","F",50,"STEENBERG",10.28,15.53,1,null,null,1,null,null,null,null,null,"BIL",null,null,5,"SPEECH DELAY"]
[136,"C","ENG","F",19,"RETREAT",8.76,15.06,1,null,null,1,null,null,null,null,null,"BIL",null,null,10,"EFFUSION"]
[137,"C","ENG","F",11,"MUIZENBERG",13.48,19.16,1,null,null,1,null,null,null,null,null,"BIL",null,null,2,"BM"]
[138,"C","ENG","M",1,"LAVENDER HILL",8.32,14.4,1,null,null,1,null,null,null,null,null,null,"BIL",null,2,"BM",1]
[139,"A","XHOSA","M",47,"HOUT BAY",14.23,22.65,null,1,null,1,null,null,null,null,null,null,"BIL",null,5,"SPEECH DELAY",1]
[140,"W","AFR","M",45,"GRASSY PARK",7.65,12.63,1,null,null,1,null,null,null,null,null,null,"R","L",2,"BM; T21; GDD",1]
[141,"C","ENG","M",10,"LAVENDER HILL",8.32,14.4,1,null,null,1,null,null,null,null,null,"BIL",null,null,2,"BM"]
[142,"C","AFR","F",120,"STRANDFONTEIN",16.61,19.73,1,null,null,1,null,null,null,null,null,"BIL",null,null,4,"OME"]
[143,"C","ENG","M",59,"OCEAN VIEW",25.63,37.61,1,null,null,null,1,null,null,null,null,null,"BIL",null,4,"NONE"]
[144,"A","XHOSA","F",7,"STRANDFONTEIN",16.61,19.73,null,1,null,null,null,null,null,1,null,null,"BIL",null,2,"BM; EX-PREM; NNJ",1]
[145,"A","OTHER","F",15,"PLUMSTEAD",1.61,11.07,null,1,null,null,null,null,null,1,null,"R","L",null,2,"BM"]
[146,"W","AFR","M",25,"RETREAT",8.76,15.06,1,null,null,1,null,null,null,null,null,"BIL",null,null,4,"OME"]
[147,"A","XHOSA","M",120,"WYNBERG",1.2,10.050000000000001,null,1,null,null,null,null,null,1,null,"BIL",null,null,2,"BM"]
[148,"C","ENG","M",3,"HOUT BAY ",14.23,22.65,1,null,null,1,null,null,null,null,null,"L","R",null,2,"BM; EX-PREM "]
[149,"C","ENG","M",72,"SCHAAP KRAAL",7.65,12.63,1,null,null,1,null,null,null,null,null,"BIL",null,null,5,"GDD"]
[150,"C","ENG","F",66,"FISH HOEK",20.37,25.72,1,null,null,null,1,null,null,null,null,"BIL",null,null,4,"OME"]
[151,"C","AFR","F",45,"RETREAT",8.76,15.06,1,null,null,1,null,null,null,null,null,"BIL",null,null,5,"OME"]
[152,"C","ENG","M",60,"OTTERY",5.86,10.89,null,1,null,null,null,null,null,1,null,"L",null,"R",10,"WAX"]
[153,"C","ENG","F",33,"PELICAN PARK",11.83,14.95,1,null,null,1,null,null,null,null,null,"BIL",null,null,5,"CP"]
[154,"W","AFR","M",24,"WYNBERG",1.2,10.050000000000001,1,null,null,1,null,null,null,null,null,"BIL",null,null,5,"NONE"]
[155,"A","XHOSA","F",11,"PLUMSTEAD",1.61,11.07,1,null,null,1,null,null,null,null,null,"BIL",null,null,2,"BM"]
[156,"C","ENG","M",96,"OTTERY",5.86,10.89,1,null,1,null,null,null,null,null,null,"BIL",null,null,2,"OME"]
[157,"A","OTHER","F",18,"PLUMSTEAD",1.61,11.07,null,1,null,null,null,null,null,1,null,"BIL",null,null,2,"BM; OME"]
[158,"A","XHOSA","F",63,"KENILWORTH",2.12,7.24,1,null,null,1,null,null,null,null,null,null,"BIL",null,2,"OME"]

{"sheet":"Code keys","index":1,"n_rows":18,"n_cols":2,"rows_kept":18,"cut":false,"hidden":false,"merged":[]}
["*Primary medical condition:","1=Neurological"]
[null,"2=Infectious"]
[null,"3=Syndromic/Genetic"]
[null,"4=Unspecified/Other"]
[null,"5=Speech delay"]
[null,"6=Referred screening"]
[null,"7=Ototoxic"]
[null,"8=Hearing Aid Pt"]
[null,"9= MVA/PVA"]
[null,"10 = ENT"]
[null,"11= CAPD screen"]
[]
["*Etiological Factors Key:","VM= Viral Meningitis"]
[null,"RVD= RVD positive"]
[null,"GDD= Global Developmental Delay"]
[null,"BM= Bacterial Meningitis"]
[null,"UNCONFIRMED=meningitis not specified"]
[null,"ASD=Autism Spectrum Disorder"]